[Event "Chile Championship Women 2022"]
[Site "Las Condes"]
[Date "2022.02.24"]
[Round "8.2"]
[White "Araos Diaz, Constanza Paz"]
[Black "Morales Flores, Monserrat"]
[Result "1/2-1/2"]
[ECO "A47"]
[WhiteElo "1435"]
[BlackElo "1943"]
[Annotator "RC"]
[PlyCount "63"]
[EventDate "2022.02.18"]
[EventType "tourn"]
[EventCountry "CHI"]
[SourceTitle "playchess.com"]
[Source "ChessBase"]
[SourceQuality "1"]
[TimeControl "5400+30"]

1. d4 {[%emt 0:03:53]} Nf6 {[%emt 0:06:25]} 2. Bf4 {[%emt 0:00:02]} g6 {[%emt 0:00:08]} 3. e3 {[%emt 0:00:04]} Bg7 {[%emt 0:00:04]} 4. Nf3 {[%emt 0:00:13]} O-O {[%emt 0:00:21]} 5. Be2 {[%emt 0:00:04]} d6 {[%emt 0:00:07]} 6. O-O {[%emt 0:00:06]} Nbd7 {[%emt 0:00:13]} 7. Nbd2 {[%emt 0:00:18]} b6 {[%emt 0:00:20]} 8. c3 {[%emt 0:00:17]} Bb7 {[%emt 0:00:20]} 9. Rc1 {[%emt 0:00:50]} Qe8 {[%emt 0:03:00]} 10. h3 {[%emt 0:00:48]} e5 {[%emt 0:00:31]} 11. Bh2 {[%emt 0:00:36]} e4 {[%emt 0:12:32]} 12. Ne1 {[%emt 1:29:19]} Qe7 {[%emt 0:00:55]} 13. b3 {[%emt 0:00:00]} a5 {[%emt 0:06:15]} 14. c4 {[%emt 0:00:00]} Ne8 {[%emt 0:04:26]} 15. Nb1 {[%emt 0:00:00]} f5 {[%emt 0:02:48]} 16. Nc3 {[%emt 0:00:00]} g5 {[%emt 0:09:05]} 17. g3 {[%emt 0:00:00]} Kh8 {[%emt 0:16:36]} 18. Ng2 {[%emt 0:00:00]} Nef6 {[%emt 0:00:33]} 19. f4 {[%emt 0:00:00]} exf3 {[%emt 0:04:50]} 20. Bxf3 {[%emt 0:00:00]} Ne4 {[%emt 0:01:56]} 21. Nxe4 {[%emt 0:00:00]} Bxe4 {[%emt 0:00:11]} 22. Bxe4 {[%emt 0:00:00]} Qxe4 {[%emt 0:00:05]} 23. Qc2 {[%emt 0:00:00]} Rae8 {[%emt 0:01:20]} 24. Qxe4 {[%emt 0:00:00]} fxe4 {[%emt 0:03:44]} 25. Rxf8+ {[%emt 0:00:00]} Rxf8 {[%emt 0:00:04]} 26. Rf1 {[%emt 0:00:00]} Kg8 {[%emt 0:01:10]} 27. Rxf8+ {[%emt 0:00:00]} Kxf8 {[%emt 0:00:05]} 28. Ne1 {[%emt 0:00:00]} Ke7 {[%emt 0:04:45]} 29. Nc2 {[%emt 0:00:00]} c6 {[%emt 0:01:44]} 30. Kf2 {[%emt 0:00:00]} h5 {[%emt 0:01:48]} 31. Ke2 {[%emt 0:00:00]} g4 {[%emt 0:07:38]} 32. h4 {[%emt 0:00:00]} 1/2-1/2

[Event "Chile Championship Women 2022"]
[Site "Las Condes"]
[Date "2022.02.24"]
[Round "8.3"]
[White "Rozas Lazcano, Valeska"]
[Black "Reyes Jara, Paula"]
[Result "1/2-1/2"]
[ECO "C54"]
[WhiteElo "1456"]
[BlackElo "1880"]
[Annotator "NA RC"]
[PlyCount "41"]
[EventDate "2022.02.18"]
[EventType "tourn"]
[EventCountry "CHI"]
[SourceTitle "playchess.com"]
[Source "ChessBase"]
[SourceQuality "1"]
[TimeControl "5400+30"]

1. e4 {[%emt 0:01:36]} e5 {[%emt 0:00:31]} 2. Nf3 {[%emt 0:00:12]} Nc6 {[%emt 0:00:06]} 3. Bc4 {[%emt 0:00:04]} Bc5 {[%emt 0:00:34]} 4. c3 {[%emt 0:00:23]} Nf6 {[%emt 0:01:00]} 5. d3 {[%emt 0:00:05]} d6 {[%emt 0:00:45]} 6. h3 {[%emt 0:00:49]} a6 {[%emt 0:03:24]} 7. b4 {[%emt 0:01:29]} Ba7 {[%emt 0:00:39]} 8. Bb3 {[%emt 0:00:08]} h6 {[%emt 0:01:38]} 9. Be3 {[%emt 0:00:40]} Bxe3 {[%emt 0:02:08]} 10. fxe3 {[%emt 0:00:07]} Qe7 {[%emt 0:00:14]} 11. Nbd2 {[%emt 0:02:49]} Bd7 {[%emt 0:01:58]} 12. Qe2 {[%emt 0:07:49]} Nh5 {[%emt 0:04:08]} 13. Qf2 {[%emt 0:05:04]} g5 {[%emt 0:02:05]} 14. Nh2 {[%emt 0:16:34]} Be6 {[%emt 0:02:55]} (14... Rf8 $1 $14) 15. Rf1 {[%emt 0:08:23]} (15. O-O $16) 15... O-O-O {[%emt 0:00:45]} 16. O-O-O $11 {[%emt 0:04:36]} Qd7 {[%emt 0:15:08]} 17. Qf3 {[%emt 0:01:56]} Ng7 {[%emt 0:00:08]} 18. Qf6 {[%emt 0:06:08]} Nh5 {[%emt 0:00:12]} 19. Qf3 {[%emt 0:00:24]} Ng7 {[%emt 0:00:36]} 20. Qf6 {[%emt 0:00:08]} Nh5 {[%emt 0:03:31]} 21. Qf3 {[%emt 0:00:11]} 1/2-1/2

[Event "Chile Championship Women 2022"]
[Site "Las Condes"]
[Date "2022.02.24"]
[Round "8.4"]
[White "Sanchez Tobar, Francisca Valentina"]
[Black "Gomez Barrera, Javiera Belen"]
[Result "1-0"]
[ECO "B51"]
[WhiteElo "1837"]
[BlackElo "2199"]
[Annotator "RC"]
[PlyCount "105"]
[EventDate "2022.02.18"]
[EventType "tourn"]
[EventCountry "CHI"]
[SourceTitle "playchess.com"]
[Source "ChessBase"]
[SourceQuality "1"]
[TimeControl "5400+30"]

1. e4 {[%emt 0:01:18]} c5 {[%emt 0:00:56]} 2. Nf3 {[%emt 0:00:30]} d6 {[%emt 0:00:19]} 3. Bb5+ {[%emt 0:00:41]} Nd7 {[%emt 0:01:26]} 4. O-O {[%emt 0:01:33]} a6 {[%emt 0:03:11]} 5. Be2 {[%emt 0:02:48]} Ngf6 {[%emt 0:02:51]} 6. d3 {[%emt 0:01:24]} g6 {[%emt 0:11:19]} 7. Re1 {[%emt 0:03:33]} Bg7 {[%emt 0:00:33]} 8. Bf1 {[%emt 0:00:50]} O-O {[%emt 0:17:37]} 9. g3 {[%emt 0:02:13]} e5 {[%emt 0:05:49]} 10. c4 {[%emt 0:12:58]} b5 {[%emt 0:09:59]} 11. a3 {[%emt 0:01:19]} Nb8 {[%emt 0:10:13]} 12. h3 {[%emt 0:06:38]} Nc6 {[%emt 0:01:59]} 13. Be3 {[%emt 0:01:21]} Rb8 {[%emt 0:03:50]} 14. b3 {[%emt 0:02:51]} Ne8 {[%emt 0:02:32]} 15. Bg2 {[%emt 0:15:43]} f5 {[%emt 0:04:07]} 16. Kh2 {[%emt 0:01:23]} Kh8 {[%emt 0:09:39]} 17. Nc3 {[%emt 0:06:48]} Bd7 {[%emt 0:06:12]} 18. Rc1 {[%emt 0:05:40]} Nc7 {[%emt 0:01:50]} 19. Rf1 {[%emt 0:08:24]} Ne6 {[%emt 0:00:32]} 20. Ng1 {[%emt 0:00:41]} f4 {[%emt 0:02:08]} 21. Bd2 {[%emt 0:00:15]} Ncd4 {[%emt 0:00:48]} 22. Rb1 {[%emt 0:04:00]} bxc4 {[%emt 0:01:05]} 23. dxc4 {[%emt 0:01:24]} Qe8 {[%emt 0:00:58]} 24. Nd5 {[%emt 0:01:47]} Rxb3 {[%emt 0:01:16]} 25. Rxb3 {[%emt 0:00:52]} Ba4 {[%emt 0:00:01]} 26. Rb8 {[%emt 0:00:22]} Qxb8 {[%emt 0:01:23]} 27. Qxa4 {[%emt 0:00:19]} f3 {[%emt 0:00:52]} 28. Bh1 {[%emt 0:00:34]} g5 {[%emt 0:00:27]} 29. Qd1 {[%emt 0:03:54]} Qb3 {[%emt 0:00:28]} 30. Qxb3 {[%emt 0:02:12]} Nxb3 {[%emt 0:00:01]} 31. Be3 {[%emt 0:00:22]} Ned4 {[%emt 0:00:34]} 32. Rb1 {[%emt 0:00:18]} a5 {[%emt 0:00:53]} 33. Nxf3 {[%emt 0:00:35]} Rxf3 {[%emt 0:00:37]} 34. Rxb3 {[%emt 0:00:13]} Rxf2+ {[%emt 0:00:08]} 35. Bxf2 {[%emt 0:00:06]} Nxb3 {[%emt 0:00:04]} 36. Be3 {[%emt 0:00:18]} Na1 {[%emt 0:00:47]} 37. Bxg5 {[%emt 0:00:21]} Nc2 {[%emt 0:00:21]} 38. a4 {[%emt 0:00:05]} Na3 {[%emt 0:00:22]} 39. Ne3 {[%emt 0:00:50]} Kg8 {[%emt 0:00:33]} 40. Bd8 {[%emt 0:00:17]} Bh6 {[%emt 0:00:10]} 41. Nf5 {[%emt 0:00:22]} Bf8 {[%emt 0:00:18]} 42. Bxa5 {[%emt 0:00:34]} Nxc4 {[%emt 0:00:02]} 43. Bc7 {[%emt 0:00:09]} Na3 {[%emt 0:01:42]} 44. Bf3 {[%emt 0:03:40]} c4 {[%emt 0:00:11]} 45. Ba5 {[%emt 0:01:31]} Kf7 {[%emt 0:00:18]} 46. Be2 {[%emt 0:01:12]} Kf6 {[%emt 0:01:06]} 47. Ne3 {[%emt 0:00:27]} Bh6 {[%emt 0:00:38]} 48. Ng4+ {[%emt 0:00:12]} Kg6 {[%emt 0:00:12]} 49. Nxh6 {[%emt 0:00:03]} Kxh6 {[%emt 0:00:08]} 50. Bb4 {[%emt 0:00:11]} Nc2 {[%emt 0:01:07]} 51. Bd2+ {[%emt 0:00:50]} Kg6 {[%emt 0:00:06]} 52. Bxc4 {[%emt 0:00:16]} Nd4 {[%emt 0:00:01]} 53. Kg2 {[%emt 0:00:13]} 1-0

[Event "Chile Championship Women 2022"]
[Site "Las Condes"]
[Date "2022.02.24"]
[Round "8.5"]
[White "Fuentes Inzunza, Lesly"]
[Black "Luna Benalcazar, Gianella"]
[Result "1/2-1/2"]
[ECO "A49"]
[WhiteElo "1816"]
[BlackElo "1736"]
[Annotator "NA RC"]
[PlyCount "72"]
[EventDate "2022.02.18"]
[EventType "tourn"]
[EventCountry "CHI"]
[SourceTitle "playchess.com"]
[Source "ChessBase"]
[SourceQuality "1"]
[TimeControl "5400+30"]

{[%evp 18,58,-23,32767,-54,-44,-37,-48,0,32767,-51,-58,32767,-53,32767,-46,0,-4,0,0,-6,-74,-50,-70,32767,-73,-51,-68,-49,-68,-41,-67,-60,-75,0,-35,32767,32767,32767,-42,0,-8,0]} 1. d4 {[%emt 0:01:56]} Nf6 {[%emt 0:02:11]} 2. Nf3 {[%emt 0:00:16]} g6 {[%emt 0:00:06]} 3. g3 {[%emt 0:00:57]} Bg7 {[%emt 0:00:05]} 4. Bg2 {[%emt 0:00:13]} O-O {[%emt 0:00:04]} 5. O-O {[%emt 0:00:22]} d6 {[%emt 0:00:04]} 6. h3 {[%emt 0:02:40]} Nc6 {[%emt 0:00:13]} 7. c3 {[%emt 0:04:23]} e5 {[%emt 0:02:27]} 8. dxe5 {[%emt 0:03:48]} dxe5 {[%emt 0:00:47]} 9. Qa4 {[%emt 0:09:43]} Bd7 {[%emt 0:04:44]} 10. Qh4 {[%emt 0:10:44]} Ne8 $1 {[%emt 0:03:45]} 11. Rd1 {[%emt 0:16:23]} Nd6 {[%emt 0:04:03]} 12. Na3 {[%emt 0:07:41]} Re8 {[%emt 0:04:46]} (12... Qxh4 $15 13. Nxh4 Rad8) 13. e4 {[%emt 0:06:41]} Qxh4 {[%emt 0:09:08]} 14. Nxh4 {[%emt 0:00:40]} Rad8 {[%emt 0:00:58]} 15. Be3 {[%emt 0:01:45]} Bf6 {[%emt 0:01:29]} 16. Bc5 {[%emt 0:05:12]} Be7 {[%emt 0:08:04]} 17. Bxd6 {[%emt 0:04:28]} Bxd6 {[%emt 0:00:11]} 18. Nb5 {[%emt 0:01:31]} Be6 {[%emt 0:02:49]} 19. Rd2 {[%emt 0:03:58]} (19. Nxd6 $11 {remains equal.} Rxd6 20. Rxd6 cxd6 21. f4) 19... Be7 {[%emt 0:04:15]} 20. Rxd8 {[%emt 0:03:56]} Bxd8 {[%emt 0:00:06]} 21. Nf3 $1 {[%emt 0:02:38]} a6 {[%emt 0:02:38]} 22. Na3 {[%emt 0:00:09]} Be7 {[%emt 0:00:26]} 23. Nc2 {[%emt 0:00:21]} Rd8 {[%emt 0:00:44]} 24. g4 {[%emt 0:01:51]} Bc5 {[%emt 0:06:06]} 25. Bf1 {[%emt 0:02:04]} b5 {[%emt 0:04:15]} ({Black should play} 25... f6 $17) 26. a4 {[%emt 0:02:00]} bxa4 {[%emt 0:18:11]} 27. Bxa6 {[%emt 0:00:33]} Rb8 {[%emt 0:01:04]} 28. Nce1 {[%emt 0:01:15]} Bb3 $11 {[%emt 0:04:14]} (28... a3 $15 {is more appropriate.} 29. bxa3 (29. b4 Nxb4 30. cxb4 Bxb4 $15) 29... Rb3) 29. Nd3 {[%emt 0:00:29]} Bd6 {[%emt 0:00:51]} 30. Nd2 {[%emt 0:05:07]} Bc2 {[%emt 0:05:31]} 31. Ra2 {[%emt 0:01:21]} Rb6 {[%emt 0:08:08]} 32. Bc4 {[%emt 0:00:02]} Na5 {[%emt 0:01:03]} 33. Ne1 {[%emt 0:01:10]} Bd1 {[%emt 0:02:39]} 34. Bd3 {[%emt 0:00:21]} Bc2 {[%emt 0:01:25]} 35. Bc4 Bf8 {[%emt 0:00:30]} 36. Ba6 {[%emt 0:01:00]} Rb8 {[%emt 0:00:30]} 1/2-1/2

[Event "Chile Championship Women 2022"]
[Site "Las Condes"]
[Date "2022.02.25"]
[Round "9.2"]
[White "Reyes Jara, Paula"]
[Black "Sanchez Tobar, Francisca Valentina"]
[Result "0-1"]
[ECO "C54"]
[WhiteElo "1880"]
[BlackElo "1837"]
[Annotator "NA RC"]
[PlyCount "67"]
[EventDate "2022.02.18"]
[EventType "tourn"]
[EventCountry "CHI"]
[SourceTitle "playchess.com"]
[Source "ChessBase"]
[SourceQuality "1"]
[TimeControl "5400+30"]

{[%evp 8,64,17,16,32767,32767,32767,32767,32767,32767,32767,32767,32767,0,32767,32767,32767,32767,32767,32767,-10,-4,1,32767,-6,-51,20,-53,-6,-21,-15,-20,-36,-29,41,40,46,39,62,44,18,15,40,32767,32767,32767,-21,-55,-24,-100,-67,-128,-102,-496,-500,-542,-719,-982,-762]} 1. e4 {[%emt 0:00:01]} e5 {[%emt 0:09:32]} 2. Nf3 {[%emt 0:00:06]} Nc6 {[%emt 0:00:35]} 3. Bc4 {[%emt 0:00:09]} Bc5 {[%emt 0:00:58]} 4. c3 {[%emt 0:00:45]} Nf6 {[%emt 0:00:43]} 5. d3 {[%emt 0:00:11]} a6 {[%emt 0:01:04]} 6. Nbd2 {[%emt 0:03:13]} d6 {[%emt 0:02:43]} 7. Bb3 {[%emt 0:00:07]} Ba7 {[%emt 0:00:59]} 8. Nf1 {[%emt 0:01:32]} h6 {[%emt 0:00:50]} 9. h3 {[%emt 0:01:20]} Ne7 {[%emt 0:02:17]} 10. Be3 {[%emt 0:02:38]} Ng6 {[%emt 0:01:37]} 11. Qd2 {[%emt 0:03:16]} Be6 {[%emt 0:04:13]} 12. Bxa7 {[%emt 0:08:35]} Rxa7 {[%emt 0:02:22]} 13. Ne3 {[%emt 0:01:50]} Ra8 {[%emt 0:02:19]} 14. h4 {[%emt 0:07:52]} Qd7 {[%emt 0:05:13]} 15. Qc2 {[%emt 0:05:38]} O-O {[%emt 0:14:42]} 16. O-O-O {[%emt 0:04:49]} c5 {[%emt 0:04:54]} (16... Bxb3 {should be considered.} 17. Qxb3 a5) 17. g3 {[%emt 0:04:10]} (17. h5 $11 {was preferrable.} Ne7 18. Rh4) 17... Ne7 {[%emt 0:10:27]} (17... Bxb3 $15 18. Qxb3 b5) 18. Rdg1 {[%emt 0:03:49]} Ng4 {[%emt 0:05:20]} 19. Nxg4 {[%emt 0:03:40]} Bxg4 {[%emt 0:00:05]} 20. Nh2 {[%emt 0:00:11]} Kh8 {[%emt 0:01:13]} ({Black should play} 20... Be6 $11) 21. f4 {[%emt 0:00:24]} f5 {[%emt 0:02:11]} 22. Nxg4 {[%emt 0:00:36]} fxg4 {[%emt 0:00:06]} 23. f5 {[%emt 0:00:09]} d5 {[%emt 0:00:13]} 24. Qe2 {[%emt 0:03:05]} d4 {[%emt 0:14:54]} 25. h5 {[%emt 0:04:54]} dxc3 {[%emt 0:01:55]} 26. bxc3 {[%emt 0:00:08]} b5 {[%emt 0:00:54]} 27. Be6 {[%emt 0:07:35]} Qd8 {[%emt 0:00:56]} (27... Qd6 $15) 28. Rh4 {[%emt 0:04:32]} (28. Rf1 $15) 28... b4 {[%emt 0:00:42]} 29. Qc2 {[%emt 0:03:46]} (29. Qd2 $1 $15) 29... Rb8 {[%emt 0:02:32]} 30. Rxg4 $2 {[%emt 0:02:11]} (30. Bb3 {was the crucial defense.}) 30... Qa5 {[%emt 0:00:55]} 31. Bb3 {[%emt 0:03:44]} bxc3 {[%emt 0:00:55]} 32. Kd1 {[%emt 0:00:49]} Nc6 $19 {[%emt 0:00:55]} 33. Rg6 {[%emt 0:14:00]} Nd4 {[%emt 0:00:37]} 34. Qc1 {[%emt 0:00:21]} 0-1

[Event "Chile Championship Women 2022"]
[Site "Las Condes"]
[Date "2022.02.26"]
[Round "9.4"]
[White "Lemus Pena, Macarena"]
[Black "Araos Diaz, Constanza Paz"]
[Result "1/2-1/2"]
[ECO "A15"]
[WhiteElo "1703"]
[BlackElo "1435"]
[Annotator "NA RC"]
[PlyCount "152"]
[EventDate "2022.02.18"]
[EventType "tourn"]
[EventCountry "CHI"]
[SourceTitle "playchess.com"]
[Source "ChessBase"]
[SourceQuality "1"]
[TimeControl "5400+30"]

1. Nf3 {[%emt 0:05:47]} Nf6 {[%emt 0:00:12]} 2. c4 {[%emt 0:00:18]} g6 {[%emt 0:00:07]} 3. b4 {[%emt 0:00:32]} d6 {[%emt 0:00:19]} 4. g3 {[%emt 0:00:20]} Bg7 {[%emt 0:00:17]} 5. Bb2 {[%emt 0:00:11]} O-O {[%emt 0:00:10]} 6. Bg2 {[%emt 0:00:15]} Nbd7 {[%emt 0:01:00]} 7. O-O {[%emt 0:00:33]} c5 {[%emt 0:00:48]} 8. b5 {[%emt 0:04:27]} Qc7 {[%emt 0:03:47]} 9. d3 {[%emt 0:03:19]} Rb8 {[%emt 0:00:55]} 10. Qb3 {[%emt 0:03:21]} b6 {[%emt 0:04:15]} 11. Nc3 {[%emt 0:00:23]} Bb7 {[%emt 0:00:15]} 12. a4 {[%emt 0:00:19]} e6 {[%emt 0:05:07]} 13. e3 {[%emt 0:13:16]} d5 {[%emt 0:07:31]} 14. Rfd1 {[%emt 0:08:05]} Rfd8 {[%emt 0:09:34]} 15. cxd5 {[%emt 0:05:18]} Nxd5 {[%emt 0:00:42]} 16. Nxd5 {[%emt 0:07:51]} Bxd5 {[%emt 0:00:14]} 17. Qc2 {[%emt 0:00:21]} Ne5 {[%emt 0:02:26]} 18. e4 {[%emt 0:06:15]} Nxf3+ {[%emt 0:03:22]} 19. Bxf3 {[%emt 0:00:13]} Bxb2 {[%emt 0:03:35]} 20. Qxb2 {[%emt 0:00:07]} Bb7 {[%emt 0:00:07]} 21. Rac1 {[%emt 0:03:42]} Qe7 {[%emt 0:02:54]} 22. Rc4 {[%emt 0:04:45]} Rd7 {[%emt 0:02:35]} 23. Rd2 {[%emt 0:06:24]} Rbd8 {[%emt 0:00:40]} 24. Qc3 {[%emt 0:00:20]} Rd4 {[%emt 0:01:54]} 25. Rxd4 {[%emt 0:02:28]} Rxd4 {[%emt 0:00:02]} 26. Ra2 {[%emt 0:04:09]} Qd7 {[%emt 0:02:22]} 27. Be2 {[%emt 0:00:29]} e5 {[%emt 0:10:24]} 28. f3 {[%emt 0:00:21]} f5 {[%emt 0:04:49]} 29. Rc2 {[%emt 0:08:30]} Kg7 {[%emt 0:03:15]} 30. Kg2 {[%emt 0:01:59]} Qd6 {[%emt 0:06:27]} 31. a5 {[%emt 0:00:19]} Bc8 {[%emt 0:01:53]} 32. axb6 {[%emt 0:00:14]} axb6 {[%emt 0:00:11]} 33. Ra2 {[%emt 0:00:16]} Bd7 {[%emt 0:02:39]} 34. exf5 {[%emt 0:04:09]} Bxf5 {[%emt 0:00:33]} 35. Ra7+ {[%emt 0:01:19]} Bd7 {[%emt 0:08:16]} 36. Qa1 {[%emt 0:01:49]} Qe6 {[%emt 0:02:41]} 37. Bf1 {[%emt 0:00:51]} Kf6 {[%emt 0:02:20]} 38. Qc1 {[%emt 0:03:26]} Bxb5 {[%emt 0:01:15]} 39. Rxh7 {[%emt 0:00:16]} Rd7 {[%emt 0:00:31]} 40. Qh6 {[%emt 0:01:43]} Rxh7 {[%emt 0:00:26]} 41. Qxh7 {[%emt 0:00:06]} Qd7 {[%emt 0:00:29]} 42. Qh8+ {[%emt 0:00:22]} Ke6 {[%emt 0:01:30]} 43. Kh1 {[%emt 0:01:18]} Kd6 {[%emt 0:03:24]} 44. Qb8+ {[%emt 0:00:08]} Qc7 {[%emt 0:00:09]} 45. Qg8 {[%emt 0:00:47]} Qe7 {[%emt 0:02:12]} 46. Qb8+ {[%emt 0:00:39]} Qc7 {[%emt 0:00:12]} 47. Qg8 {[%emt 0:00:20]} Qe7 {[%emt 0:00:29]} 48. Qxg6+ {[%emt 0:00:22]} Qe6 {[%emt 0:00:05]} 49. Qg5 {[%emt 0:00:26]} Qe7 {[%emt 0:01:17]} 50. Qh6+ {[%emt 0:00:14]} Qe6 {[%emt 0:00:11]} 51. Qf8+ {[%emt 0:00:39]} Qe7 {[%emt 0:00:19]} 52. Qb8+ {[%emt 0:00:09]} Qc7 {[%emt 0:00:05]} 53. Qg8 {[%emt 0:00:27]} Qe7 {[%emt 0:00:40]} 54. h4 {[%emt 0:00:28]} Qf6 {[%emt 0:00:59]} 55. Be2 {[%emt 0:00:53]} Bc6 {[%emt 0:01:02]} 56. Kg2 {[%emt 0:00:34]} b5 {[%emt 0:01:10]} 57. Qb8+ {[%emt 0:00:12]} Kd5 {[%emt 0:03:57]} 58. Qa7 {[%emt 0:01:19]} Kd4 {[%emt 0:00:00]} 59. Kf2 {[%emt 0:00:13]} Qh6 {[%emt 0:00:00]} 60. Qa1+ {[%emt 0:00:38]} Kd5 {[%emt 0:00:00]} 61. Qb2 {[%emt 0:00:34]} Qf6 {[%emt 0:00:08]} 62. Bf1 {[%emt 0:00:26]} Kd6 {[%emt 0:00:16]} 63. Bg2 {[%emt 0:00:39]} Qf5 {[%emt 0:00:24]} 64. Qb3 {[%emt 0:00:36]} b4 {[%emt 0:00:35]} 65. Qd1 {[%emt 0:00:37]} Bb5 {[%emt 0:00:36]} 66. Bf1 {[%emt 0:00:09]} Qe6 {[%emt 0:00:33]} 67. d4 {[%emt 0:00:46]} Qa2+ {[%emt 0:00:30]} 68. Kg1 {[%emt 0:00:42]} Bxf1 {[%emt 0:00:19]} 69. dxc5+ {[%emt 0:00:23]} Kxc5 {[%emt 0:00:02]} 70. Qxf1 {[%emt 0:00:20]} Qf7 {[%emt 0:00:25]} 71. Qe2 {[%emt 0:00:20]} Qd5 {[%emt 0:00:22]} 72. Qc2+ {[%emt 0:01:00]} Qc4 {[%emt 0:00:19]} 73. Qa4 {[%emt 0:00:41]} Qc1+ {[%emt 0:00:22]} 74. Kf2 {[%emt 0:00:11]} Qd2+ {[%emt 0:00:07]} 75. Kf1 {[%emt 0:00:12]} Qd3+ {[%emt 0:00:11]} 76. Kf2 {[%emt 0:00:57]} Qd2+ {[%emt 0:00:04]} 1/2-1/2

[Event "Chile Championship Women 2022"]
[Site "Las Condes"]
[Date "2022.02.26"]
[Round "10.1"]
[White "Araos Diaz, Constanza Paz"]
[Black "Vildosola Canales, Melany Selena"]
[Result "0-1"]
[ECO "D02"]
[WhiteElo "1435"]
[BlackElo "1645"]
[Annotator "NA RC"]
[PlyCount "92"]
[EventDate "2022.02.18"]
[EventType "tourn"]
[EventCountry "CHI"]
[SourceTitle "playchess.com"]
[Source "ChessBase"]
[SourceQuality "1"]
[TimeControl "5400+30"]

1. d4 {[%emt 0:00:02]} Nf6 {[%emt 0:08:01]} 2. Bf4 {[%emt 0:00:02]} g6 {[%emt 0:00:06]} 3. e3 {[%emt 0:00:06]} d5 {[%emt 0:00:04]} 4. Nf3 {[%emt 0:00:07]} Bg7 {[%emt 0:00:06]} 5. Be2 {[%emt 0:00:05]} c5 {[%emt 0:00:12]} 6. c3 {[%emt 0:00:06]} O-O {[%emt 0:00:09]} 7. O-O {[%emt 0:00:04]} Nbd7 {[%emt 0:01:03]} 8. Nbd2 {[%emt 0:00:12]} Re8 {[%emt 0:00:28]} 9. h3 {[%emt 0:00:23]} b6 {[%emt 0:05:31]} 10. Ne5 {[%emt 0:01:27]} Bb7 {[%emt 0:17:46]} 11. Bh2 {[%emt 0:05:59]} a6 {[%emt 0:05:08]} 12. f4 {[%emt 0:01:06]} Nf8 {[%emt 0:04:57]} 13. g4 {[%emt 0:01:47]} N6d7 {[%emt 0:01:55]} 14. Nxd7 {[%emt 0:04:39]} Nxd7 {[%emt 0:01:41]} 15. Nf3 {[%emt 0:10:15]} Nf6 {[%emt 0:05:11]} 16. Ne5 {[%emt 0:02:36]} Ne4 {[%emt 0:02:31]} 17. f5 {[%emt 0:04:52]} f6 {[%emt 0:03:32]} 18. Nd3 {[%emt 0:04:17]} e5 {[%emt 0:08:59]} 19. fxe6 {[%emt 0:01:37]} Rxe6 {[%emt 0:00:21]} 20. Kg2 {[%emt 0:15:02]} Nd6 {[%emt 0:03:04]} 21. dxc5 {[%emt 0:15:49]} Nc4 {[%emt 0:03:23]} 22. Bg1 {[%emt 0:02:04]} Rxe3 {[%emt 0:07:41]} 23. Bf3 {[%emt 0:10:38]} Re7 {[%emt 0:11:34]} 24. b3 {[%emt 0:02:45]} Ne3+ {[%emt 0:01:09]} 25. Bxe3 {[%emt 0:00:08]} Rxe3 {[%emt 0:00:07]} 26. Nf4 {[%emt 0:05:17]} bxc5 {[%emt 0:04:17]} 27. Bxd5+ {[%emt 0:00:54]} Bxd5+ {[%emt 0:01:33]} 28. Nxd5 {[%emt 0:00:06]} Re6 {[%emt 0:02:33]} 29. Rc1 {[%emt 0:02:37]} Rd6 {[%emt 0:00:41]} 30. c4 {[%emt 0:00:08]} Rb8 {[%emt 0:00:36]} 31. Qe2 {[%emt 0:00:59]} Qd7 {[%emt 0:00:55]} 32. Rce1 {[%emt 0:00:42]} Kf7 {[%emt 0:00:40]} 33. Qf2 {[%emt 0:00:28]} Qd8 {[%emt 0:00:28]} 34. Qxc5 {[%emt 0:00:33]} Rc8 {[%emt 0:00:25]} 35. Qa7+ {[%emt 0:01:18]} Rd7 {[%emt 0:00:40]} 36. Qxa6 {[%emt 0:00:27]} Rxd5 {[%emt 0:00:31]} 37. Qe6+ {[%emt 0:00:16]} Kf8 {[%emt 0:00:12]} 38. cxd5 {[%emt 0:00:12]} Rc2+ {[%emt 0:00:14]} 39. Rf2 {[%emt 0:00:12]} Rxf2+ {[%emt 0:00:50]} 40. Kxf2 {[%emt 0:00:04]} f5 {[%emt 0:00:15]} 41. Kg2 {[%emt 0:00:51]} Bd4 {[%emt 0:00:35]} 42. Rc1 {[%emt 0:01:41]} Kg7 {[%emt 0:00:42]} 43. Rc8 {[%emt 0:00:40]} Qh4 {[%emt 0:00:37]} 44. Qg8+ {[%emt 0:00:32]} Kh6 {[%emt 0:00:10]} 45. Rc7 {[%emt 0:00:54]} Qf2+ {[%emt 0:00:12]} 46. Kh1 {[%emt 0:00:12]} Qg1# {[%emt 0:00:08]} 0-1

[Event "Chile Championship Women 2022"]
[Site "Las Condes"]
[Date "2022.02.26"]
[Round "10.2"]
[White "Rozas Lazcano, Valeska"]
[Black "Lemus Pena, Macarena"]
[Result "1-0"]
[ECO "B30"]
[WhiteElo "1456"]
[BlackElo "1703"]
[Annotator "NA RC"]
[PlyCount "49"]
[EventDate "2022.02.18"]
[EventType "tourn"]
[EventCountry "CHI"]
[SourceTitle "playchess.com"]
[Source "ChessBase"]
[SourceQuality "1"]
[TimeControl "5400+30"]

1. e4 {[%emt 0:00:02]} c5 {[%emt 0:11:00]} 2. Nc3 {[%emt 0:00:04]} Nc6 {[%emt 0:00:05]} 3. Bb5 {[%emt 0:00:06]} Nd4 {[%emt 0:00:43]} 4. Nf3 {[%emt 0:00:16]} e6 {[%emt 0:00:44]} 5. a4 {[%emt 0:01:43]} a6 {[%emt 0:01:51]} 6. Bc4 {[%emt 0:01:18]} Ne7 {[%emt 0:00:44]} 7. Nxd4 {[%emt 0:02:35]} cxd4 {[%emt 0:00:10]} 8. Ne2 {[%emt 0:00:04]} Nc6 {[%emt 0:00:12]} 9. d3 {[%emt 0:00:29]} Be7 {[%emt 0:02:30]} 10. Bd2 {[%emt 0:03:14]} O-O {[%emt 0:00:57]} 11. O-O {[%emt 0:01:06]} Kh8 {[%emt 0:07:07]} 12. a5 {[%emt 0:02:30]} f5 {[%emt 0:03:29]} 13. f4 {[%emt 0:08:49]} b5 {[%emt 0:03:17]} 14. axb6 {[%emt 0:13:20]} fxe4 {[%emt 0:00:31]} 15. dxe4 {[%emt 0:01:27]} Qxb6 {[%emt 0:00:10]} 16. Kh1 {[%emt 0:00:21]} Bb7 {[%emt 0:16:23]} 17. Ng3 {[%emt 0:08:10]} Bh4 {[%emt 0:09:42]} 18. Qg4 {[%emt 0:13:51]} Bxg3 {[%emt 0:00:20]} 19. Qxg3 {[%emt 0:00:04]} Nb4 {[%emt 0:11:44]} 20. Qb3 {[%emt 0:04:29]} a5 {[%emt 0:03:02]} 21. c3 {[%emt 0:04:57]} dxc3 {[%emt 0:00:08]} 22. bxc3 {[%emt 0:00:07]} Qd6 {[%emt 0:00:28]} 23. Be3 {[%emt 0:06:10]} Nc6 {[%emt 0:00:15]} 24. Qxb7 {[%emt 0:07:42]} Rfb8 {[%emt 0:17:50]} 25. e5 {[%emt 0:00:28]} 1-0